[Event "Titled Tuesday Blitz March 15 Early 2022"]
[White "Yang, Kaiqi"]
[Black "Polster, Christian"]
[WhiteFideId "8604398"]
[BlackFideId "12965081"]
[WhiteElo "2373"]
[BlackElo "2277"]
[Result "1/2-1/2"]
[Round "02"]
[TimeControl "180+1"]
[Date "2022.03.15"]
[WhiteClock "0:00:03"]
[BlackClock "0:00:08"]

1. e4 {[%clk 0:03:00]}  c5 {[%clk 0:03:00]} 2. Nc3 {[%clk 0:02:58]}  a6 {[%clk 0:02:59]} 3. g3 {[%clk 0:02:56]}  Nc6 {[%clk 0:02:53]} 4. Bg2 {[%clk 0:02:56]}  g6 {[%clk 0:02:53]} 5. d3 {[%clk 0:02:54]}  Bg7 {[%clk 0:02:53]} 6. Be3 {[%clk 0:02:54]}  Nd4 {[%clk 0:02:51]} 7. Qd2 {[%clk 0:02:51]}  b5 {[%clk 0:02:47]} 8. a3 {[%clk 0:02:38]}  Bb7 {[%clk 0:02:46]} 9. Rb1 {[%clk 0:02:36]}  d6 {[%clk 0:01:55]} 10. Nge2 {[%clk 0:02:20]}  e6 {[%clk 0:01:39]} 11. O-O {[%clk 0:02:19]}  Ne7 {[%clk 0:01:39]} 12. b4 {[%clk 0:02:19]}  Rc8 {[%clk 0:01:24]} 13. Nd1 {[%clk 0:02:08]}  Nxe2+ {[%clk 0:00:48]} 14. Qxe2 {[%clk 0:02:08]}  cxb4 {[%clk 0:00:48]} 15. axb4 {[%clk 0:02:07]}  O-O {[%clk 0:00:47]} 16. c4 {[%clk 0:01:52]}  bxc4 {[%clk 0:00:36]} 17. dxc4 {[%clk 0:01:51]}  Qc7 {[%clk 0:00:36]} 18. c5 {[%clk 0:01:23]}  Rfd8 {[%clk 0:00:33]} 19. Nb2 {[%clk 0:01:17]}  Nc6 {[%clk 0:00:31]} 20. Nc4 {[%clk 0:00:50]}  dxc5 {[%clk 0:00:25]} 21. Bxc5 {[%clk 0:00:30]}  Bd4 {[%clk 0:00:18]} 22. Rfc1 {[%clk 0:00:17]}  Bxc5 {[%clk 0:00:14]} 23. bxc5 {[%clk 0:00:18]}  Nd4 {[%clk 0:00:14]} 24. Qa2 {[%clk 0:00:17]}  Ba8 {[%clk 0:00:14]} 25. Nb6 {[%clk 0:00:12]}  Rb8 {[%clk 0:00:14]} 26. Qxa6 {[%clk 0:00:08]}  Bb7 {[%clk 0:00:13]} 27. Qc4 {[%clk 0:00:08]}  Bc6 {[%clk 0:00:13]} 28. h4 {[%clk 0:00:07]}  e5 {[%clk 0:00:13]} 29. h5 {[%clk 0:00:07]}  Kg7 {[%clk 0:00:13]} 30. hxg6 {[%clk 0:00:07]}  hxg6 {[%clk 0:00:14]} 31. Rd1 {[%clk 0:00:06]}  Bd7 {[%clk 0:00:12]} 32. Nd5 {[%clk 0:00:06]}  Qc6 {[%clk 0:00:12]} 33. Rxb8 {[%clk 0:00:05]}  Rxb8 {[%clk 0:00:12]} 34. Bf1 {[%clk 0:00:03]}  Be6 {[%clk 0:00:12]} 35. Kg2 {[%clk 0:00:03]}  Rd8 {[%clk 0:00:12]} 36. Kg1 {[%clk 0:00:02]}  Bxd5 {[%clk 0:00:13]} 37. exd5 {[%clk 0:00:02]}  Qxd5 {[%clk 0:00:13]} 38. Qxd5 {[%clk 0:00:02]}  Rxd5 {[%clk 0:00:14]} 39. Rc1 {[%clk 0:00:03]}  Rd8 {[%clk 0:00:14]} 40. c6 {[%clk 0:00:03]}  Rc8 {[%clk 0:00:15]} 41. c7 {[%clk 0:00:03]}  Ne6 {[%clk 0:00:15]} 42. Bh3 {[%clk 0:00:03]}  Rxc7 {[%clk 0:00:15]} 43. Rxc7 {[%clk 0:00:02]}  Nxc7 {[%clk 0:00:16]} 44. Bf1 {[%clk 0:00:02]}  f6 {[%clk 0:00:17]} 45. Kg2 {[%clk 0:00:03]}  Ne8 {[%clk 0:00:17]} 46. Be2 {[%clk 0:00:03]}  Nd6 {[%clk 0:00:18]} 47. f4 {[%clk 0:00:04]}  e4 {[%clk 0:00:17]} 48. Kf2 {[%clk 0:00:04]}  f5 {[%clk 0:00:18]} 49. Ke3 {[%clk 0:00:04]}  Kf6 {[%clk 0:00:18]} 50. Bf1 {[%clk 0:00:04]}  Ne8 {[%clk 0:00:17]} 51. Be2 {[%clk 0:00:05]}  Ng7 {[%clk 0:00:17]} 52. g4 {[%clk 0:00:05]}  Ne6 {[%clk 0:00:17]} 53. g5+ {[%clk 0:00:04]}  Ke7 {[%clk 0:00:16]} 54. Bc4 {[%clk 0:00:04]}  Kd6 {[%clk 0:00:16]} 55. Bb3 {[%clk 0:00:05]}  Nd8 {[%clk 0:00:16]} 56. Bc4 {[%clk 0:00:05]}  Kc5 {[%clk 0:00:15]} 57. Ba2 {[%clk 0:00:05]}  Kd6 {[%clk 0:00:15]} 58. Bg8 {[%clk 0:00:05]}  Ke7 {[%clk 0:00:15]} 59. Bb3 {[%clk 0:00:05]}  Ne6 {[%clk 0:00:14]} 60. Bc4 {[%clk 0:00:05]}  Nc5 {[%clk 0:00:14]} 61. Ba2 {[%clk 0:00:05]}  Nd3 {[%clk 0:00:14]} 62. Bc4 {[%clk 0:00:05]}  Ne1 {[%clk 0:00:13]} 63. Kf2 {[%clk 0:00:04]}  Nf3 {[%clk 0:00:12]} 64. Be2 {[%clk 0:00:03]}  Nd4 {[%clk 0:00:12]} 65. Bc4 {[%clk 0:00:03]}  Nc2 {[%clk 0:00:10]} 66. Ke2 {[%clk 0:00:02]}  Nb4 {[%clk 0:00:10]} 67. Bb3 {[%clk 0:00:02]}  Nc6 {[%clk 0:00:09]} 68. Ke3 {[%clk 0:00:02]}  Kf8 {[%clk 0:00:08]} 69. Ba2 {[%clk 0:00:02]}  Nb4 {[%clk 0:00:08]} 70. Bb3 {[%clk 0:00:02]}  Nc6 {[%clk 0:00:08]} 71. Bc4 {[%clk 0:00:03]}  Nb4 {[%clk 0:00:08]} 72. Bb3 {[%clk 0:00:03]}  Nc6 {[%clk 0:00:08]} 1/2-1/2


[Site "https://www.chess.com"]

[Event "Titled Tuesday Blitz March 15 Early 2022"]
[White "Zhigalko, Sergei"]
[Black "De Souza, Cristiano Gomes"]
[WhiteFideId "13502956"]
[BlackFideId "2151758"]
[WhiteElo "2662"]
[BlackElo "2068"]
[Result "1-0"]
[Round "02"]
[TimeControl "180+1"]
[Date "2022.03.15"]
[WhiteClock "0:01:58"]
[BlackClock "0:02:28"]

1. e4 {[%clk 0:03:00]}  c5 {[%clk 0:02:56]} 2. Nf3 {[%clk 0:03:00]}  d6 {[%clk 0:02:56]} 3. d4 {[%clk 0:03:00]}  cxd4 {[%clk 0:02:56]} 4. Qxd4 {[%clk 0:02:59]}  Nf6 {[%clk 0:02:56]} 5. Nc3 {[%clk 0:02:58]}  Nc6 {[%clk 0:02:56]} 6. Bb5 {[%clk 0:02:57]}  Bd7 {[%clk 0:02:53]} 7. Bxc6 {[%clk 0:02:55]}  Bxc6 {[%clk 0:02:53]} 8. Bg5 {[%clk 0:02:55]}  e6 {[%clk 0:02:52]} 9. O-O-O {[%clk 0:02:55]}  Be7 {[%clk 0:02:52]} 10. Rhe1 {[%clk 0:02:54]}  Qa5 {[%clk 0:02:50]} 11. Kb1 {[%clk 0:02:53]}  h6 {[%clk 0:02:49]} 12. Bh4 {[%clk 0:02:52]}  Rd8 {[%clk 0:02:48]} 13. Qd2 {[%clk 0:02:51]}  b5 {[%clk 0:02:40]} 14. Nd4 {[%clk 0:02:46]}  Bd7 {[%clk 0:02:35]} 15. Ncxb5 {[%clk 0:02:26]}  Qxd2 {[%clk 0:02:33]} 16. Rxd2 {[%clk 0:02:22]}  Bxb5 {[%clk 0:02:30]} 17. Nxb5 {[%clk 0:02:22]}  Rd7 {[%clk 0:02:30]} 18. Bxf6 {[%clk 0:01:58]}  gxf6 {[%clk 0:02:28]} 19. Red1 {[%clk 0:01:58]} 1-0


[Site "https://www.chess.com"]

[Event "Titled Tuesday Blitz March 15 Early 2022"]
[White "Zong, Davis"]
[Black "Shimanov, Aleksandr"]
[WhiteFideId "30903955"]
[BlackFideId "4198603"]
[WhiteElo "2061"]
[BlackElo "2636"]
[Result "0-1"]
[Round "02"]
[TimeControl "180+1"]
[Date "2022.03.15"]
[WhiteClock "0:00:01"]
[BlackClock "0:00:18"]

1. e4 {[%clk 0:03:00]}  c6 {[%clk 0:02:57]} 2. d4 {[%clk 0:03:00]}  d5 {[%clk 0:02:57]} 3. exd5 {[%clk 0:03:01]}  cxd5 {[%clk 0:02:57]} 4. Bd3 {[%clk 0:03:01]}  Nf6 {[%clk 0:02:57]} 5. Bf4 {[%clk 0:03:00]}  Bg4 {[%clk 0:02:51]} 6. Nf3 {[%clk 0:02:55]}  Nc6 {[%clk 0:02:50]} 7. c3 {[%clk 0:02:55]}  e6 {[%clk 0:02:43]} 8. h3 {[%clk 0:02:54]}  Bh5 {[%clk 0:02:43]} 9. O-O {[%clk 0:02:53]}  Be7 {[%clk 0:02:42]} 10. Nbd2 {[%clk 0:02:51]}  O-O {[%clk 0:02:42]} 11. Qb3 {[%clk 0:02:44]}  Na5 {[%clk 0:02:37]} 12. Qc2 {[%clk 0:02:32]}  Bg6 {[%clk 0:02:32]} 13. Bxg6 {[%clk 0:02:12]}  hxg6 {[%clk 0:02:33]} 14. Ne5 {[%clk 0:02:13]}  Rc8 {[%clk 0:02:29]} 15. Rfe1 {[%clk 0:01:56]}  b5 {[%clk 0:02:27]} 16. a3 {[%clk 0:01:19]}  Nb7 {[%clk 0:02:20]} 17. Ndf3 {[%clk 0:01:07]}  Ne4 {[%clk 0:02:16]} 18. Nd2 {[%clk 0:00:59]}  Nxd2 {[%clk 0:02:09]} 19. Qxd2 {[%clk 0:00:58]}  Nd6 {[%clk 0:02:10]} 20. Qe2 {[%clk 0:00:49]}  Bf6 {[%clk 0:01:54]} 21. Nd3 {[%clk 0:00:38]}  Nb7 {[%clk 0:01:28]} 22. a4 {[%clk 0:00:28]}  bxa4 {[%clk 0:01:24]} 23. Rxa4 {[%clk 0:00:29]}  a5 {[%clk 0:01:24]} 24. Ne5 {[%clk 0:00:16]}  Bxe5 {[%clk 0:01:15]} 25. Bxe5 {[%clk 0:00:16]}  Qb6 {[%clk 0:01:14]} 26. h4 {[%clk 0:00:10]}  f6 {[%clk 0:00:57]} 27. Bf4 {[%clk 0:00:10]}  Rfe8 {[%clk 0:00:57]} 28. Ra2 {[%clk 0:00:08]}  Kf7 {[%clk 0:00:54]} 29. h5 {[%clk 0:00:08]}  g5 {[%clk 0:00:54]} 30. Bg3 {[%clk 0:00:07]}  Rh8 {[%clk 0:00:51]} 31. b4 {[%clk 0:00:05]}  Rhe8 {[%clk 0:00:39]} 32. bxa5 {[%clk 0:00:04]}  Nxa5 {[%clk 0:00:40]} 33. Raa1 {[%clk 0:00:05]}  Nc4 {[%clk 0:00:36]} 34. Rab1 {[%clk 0:00:04]}  Qc6 {[%clk 0:00:36]} 35. Rb3 {[%clk 0:00:04]}  Re7 {[%clk 0:00:36]} 36. Reb1 {[%clk 0:00:04]}  Ra8 {[%clk 0:00:35]} 37. Qd3 {[%clk 0:00:03]}  Qe8 {[%clk 0:00:31]} 38. Qg6+ {[%clk 0:00:03]}  Kf8 {[%clk 0:00:28]} 39. Qh7 {[%clk 0:00:02]}  Qf7 {[%clk 0:00:25]} 40. Rb8+ {[%clk 0:00:01]}  Rxb8 {[%clk 0:00:22]} 41. Rxb8+ {[%clk 0:00:02]}  Re8 {[%clk 0:00:23]} 42. Qh8+ {[%clk 0:00:02]}  Ke7 {[%clk 0:00:23]} 43. Bd6+ {[%clk 0:00:02]}  Kd7 {[%clk 0:00:24]} 44. Rb7+ {[%clk 0:00:02]}  Kxd6 {[%clk 0:00:18]} 45. Rxf7 {[%clk 0:00:01]}  Rxh8 {[%clk 0:00:18]} 0-1


[Site "https://www.chess.com"]

[Event "Titled Tuesday Blitz March 15 Early 2022"]
[White "volunteers1998"]
[Black "Marson, Juan Miguel"]
[BlackFideId "106585"]
[WhiteElo "2250"]
[BlackElo "2053"]
[Result "1-0"]
[Round "02"]
[TimeControl "180+1"]
[Date "2022.03.15"]
[WhiteClock "0:00:09"]
[BlackClock "0:00:03"]

1. e4 {[%clk 0:02:59]}  e5 {[%clk 0:02:59]} 2. Nf3 {[%clk 0:03:00]}  Nc6 {[%clk 0:02:59]} 3. Bc4 {[%clk 0:02:59]}  Nf6 {[%clk 0:02:58]} 4. Ng5 {[%clk 0:02:58]}  d5 {[%clk 0:02:58]} 5. exd5 {[%clk 0:02:56]}  Na5 {[%clk 0:02:58]} 6. Bb5+ {[%clk 0:02:56]}  c6 {[%clk 0:02:58]} 7. dxc6 {[%clk 0:02:54]}  bxc6 {[%clk 0:02:58]} 8. Bd3 {[%clk 0:02:50]}  Nd5 {[%clk 0:02:43]} 9. Nf3 {[%clk 0:02:48]}  Bd6 {[%clk 0:02:41]} 10. O-O {[%clk 0:02:45]}  Nf4 {[%clk 0:02:38]} 11. Re1 {[%clk 0:02:24]}  Nxd3 {[%clk 0:02:33]} 12. cxd3 {[%clk 0:02:25]}  O-O {[%clk 0:02:34]} 13. Nc3 {[%clk 0:02:21]}  c5 {[%clk 0:02:17]} 14. b3 {[%clk 0:02:11]}  Nc6 {[%clk 0:02:14]} 15. Bb2 {[%clk 0:02:06]}  Bg4 {[%clk 0:02:14]} 16. h3 {[%clk 0:02:02]}  Bh5 {[%clk 0:02:11]} 17. Ne4 {[%clk 0:02:02]}  f6 {[%clk 0:02:04]} 18. Rc1 {[%clk 0:01:58]}  Nb4 {[%clk 0:01:31]} 19. Qe2 {[%clk 0:01:54]}  Be7 {[%clk 0:01:23]} 20. Rc4 {[%clk 0:01:42]}  Nxd3 {[%clk 0:01:16]} 21. Rb1 {[%clk 0:01:42]}  Nf4 {[%clk 0:01:13]} 22. Qe3 {[%clk 0:01:39]}  Nd5 {[%clk 0:00:48]} 23. Qe2 {[%clk 0:01:37]}  f5 {[%clk 0:00:44]} 24. Ng3 {[%clk 0:01:34]}  Bxf3 {[%clk 0:00:33]} 25. Qxf3 {[%clk 0:01:30]}  e4 {[%clk 0:00:33]} 26. Qd1 {[%clk 0:01:28]}  Nf4 {[%clk 0:00:25]} 27. Qc2 {[%clk 0:01:23]}  Nd3 {[%clk 0:00:23]} 28. Ne2 {[%clk 0:01:12]}  Bf6 {[%clk 0:00:18]} 29. Bxf6 {[%clk 0:01:05]}  Rxf6 {[%clk 0:00:18]} 30. Nc1 {[%clk 0:01:02]}  Nf4 {[%clk 0:00:10]} 31. Rxc5 {[%clk 0:01:00]}  Rg6 {[%clk 0:00:10]} 32. Qc4+ {[%clk 0:00:57]}  Kh8 {[%clk 0:00:10]} 33. Kf1 {[%clk 0:00:37]}  Nxg2 {[%clk 0:00:06]} 34. Ne2 {[%clk 0:00:35]}  Nh4 {[%clk 0:00:06]} 35. Nf4 {[%clk 0:00:33]}  Rd6 {[%clk 0:00:04]} 36. Rd1 {[%clk 0:00:31]}  Nf3 {[%clk 0:00:03]} 37. d3 {[%clk 0:00:27]}  exd3 {[%clk 0:00:03]} 38. Rxf5 {[%clk 0:00:22]}  Nd4 {[%clk 0:00:01]} 39. Rd5 {[%clk 0:00:19]}  Rxd5 {[%clk 0:00:01]} 40. Qxd5 {[%clk 0:00:18]}  Ne6 {[%clk 0:00:01]} 41. Qxe6 {[%clk 0:00:14]}  Qc7 {[%clk 0:00:02]} 42. Qc4 {[%clk 0:00:11]}  Rf8 {[%clk 0:00:03]} 43. Qxc7 {[%clk 0:00:09]} 1-0


[Site "https://www.chess.com"]

[Event "Titled Tuesday Blitz March 15 Early 2022"]
[White "Aghamaliyev, Cemil"]
[Black "Van Foreest, Jorden"]
[WhiteFideId "13400215"]
[BlackFideId "1039784"]
[WhiteElo "2765"]
[BlackElo "2609"]
[Result "1-0"]
[Round "03"]
[TimeControl "180+1"]
[Date "2022.03.15"]
[WhiteClock "0:00:58"]
[BlackClock "0:00:40"]

1. d4 {[%clk 0:02:50]}  Nf6 {[%clk 0:02:56]} 2. Nc3 {[%clk 0:02:50]}  d5 {[%clk 0:02:56]} 3. Bg5 {[%clk 0:02:51]}  c5 {[%clk 0:02:53]} 4. Bxf6 {[%clk 0:02:50]}  gxf6 {[%clk 0:02:52]} 5. e3 {[%clk 0:02:51]}  Nc6 {[%clk 0:02:48]} 6. Qh5 {[%clk 0:02:51]}  e6 {[%clk 0:02:48]} 7. O-O-O {[%clk 0:02:51]}  cxd4 {[%clk 0:02:46]} 8. exd4 {[%clk 0:02:51]}  Bd7 {[%clk 0:02:39]} 9. Bb5 {[%clk 0:02:47]}  Qa5 {[%clk 0:02:38]} 10. Nge2 {[%clk 0:02:45]}  a6 {[%clk 0:02:31]} 11. Ba4 {[%clk 0:02:45]}  Rg8 {[%clk 0:02:17]} 12. g3 {[%clk 0:02:44]}  Rg6 {[%clk 0:02:13]} 13. Kb1 {[%clk 0:02:39]}  Rh6 {[%clk 0:02:10]} 14. Qf3 {[%clk 0:02:35]}  O-O-O {[%clk 0:02:10]} 15. h4 {[%clk 0:02:32]}  f5 {[%clk 0:02:09]} 16. Rhe1 {[%clk 0:02:26]}  Rg6 {[%clk 0:02:04]} 17. Qh5 {[%clk 0:02:19]}  Bg7 {[%clk 0:01:52]} 18. Bxc6 {[%clk 0:02:12]}  bxc6 {[%clk 0:01:37]} 19. Nf4 {[%clk 0:02:12]}  c5 {[%clk 0:01:28]} 20. Nxg6 {[%clk 0:01:41]}  hxg6 {[%clk 0:01:29]} 21. Qh7 {[%clk 0:01:41]}  Bxd4 {[%clk 0:01:29]} 22. Qxf7 {[%clk 0:01:41]}  Kc7 {[%clk 0:00:52]} 23. Ne2 {[%clk 0:01:09]}  Bh8 {[%clk 0:00:49]} 24. Nf4 {[%clk 0:01:05]}  Rb8 {[%clk 0:00:50]} 25. Nxe6+ {[%clk 0:01:04]}  Kc6 {[%clk 0:00:50]} 26. Ng7 {[%clk 0:01:00]}  Qc3 {[%clk 0:00:40]} 27. Qxd5+ {[%clk 0:00:58]} 1-0


[Site "https://www.chess.com"]

[Event "Titled Tuesday Blitz March 15 Early 2022"]
[White "Atakhan, Abtin"]
[Black "Bettalli, Francesco"]
[WhiteFideId "22502203"]
[BlackFideId "2816453"]
[WhiteElo "2119"]
[BlackElo "2216"]
[Result "1-0"]
[Round "03"]
[TimeControl "180+1"]
[Date "2022.03.15"]
[WhiteClock "0:02:17"]
[BlackClock "0:01:10"]

1. c4 {[%clk 0:02:59]}  c5 {[%clk 0:02:58]} 2. g3 {[%clk 0:02:58]}  g6 {[%clk 0:02:58]} 3. Bg2 {[%clk 0:02:59]}  Bg7 {[%clk 0:02:58]} 4. Nc3 {[%clk 0:02:59]}  Nc6 {[%clk 0:02:58]} 5. d3 {[%clk 0:03:00]}  d6 {[%clk 0:02:58]} 6. Qd2 {[%clk 0:03:00]}  e6 {[%clk 0:02:58]} 7. b3 {[%clk 0:03:00]}  Nge7 {[%clk 0:02:56]} 8. Bb2 {[%clk 0:03:00]}  O-O {[%clk 0:02:56]} 9. e3 {[%clk 0:03:01]}  b6 {[%clk 0:02:56]} 10. Nge2 {[%clk 0:03:01]}  Bb7 {[%clk 0:02:56]} 11. O-O {[%clk 0:03:01]}  Qd7 {[%clk 0:02:55]} 12. d4 {[%clk 0:03:01]}  Rad8 {[%clk 0:02:50]} 13. Rad1 {[%clk 0:02:59]}  Qc8 {[%clk 0:02:49]} 14. Qc1 {[%clk 0:02:59]}  cxd4 {[%clk 0:02:44]} 15. exd4 {[%clk 0:02:56]}  d5 {[%clk 0:02:44]} 16. cxd5 {[%clk 0:02:46]}  Nxd5 {[%clk 0:02:45]} 17. Nxd5 {[%clk 0:02:46]}  exd5 {[%clk 0:02:46]} 18. Nf4 {[%clk 0:02:46]}  Ne7 {[%clk 0:02:19]} 19. Ba3 {[%clk 0:02:46]}  Qxc1 {[%clk 0:02:18]} 20. Rxc1 {[%clk 0:02:47]}  Rfe8 {[%clk 0:02:17]} 21. Rc7 {[%clk 0:02:47]}  Ba6 {[%clk 0:02:17]} 22. Bxe7 {[%clk 0:02:44]}  Bxf1 {[%clk 0:02:13]} 23. Bxf1 {[%clk 0:02:42]}  Rc8 {[%clk 0:02:11]} 24. Rxc8 {[%clk 0:02:41]}  Rxc8 {[%clk 0:02:12]} 25. Nxd5 {[%clk 0:02:42]}  Bxd4 {[%clk 0:02:12]} 26. Bc4 {[%clk 0:02:37]}  b5 {[%clk 0:02:08]} 27. Bxb5 {[%clk 0:02:36]}  Rc2 {[%clk 0:02:06]} 28. Ne3 {[%clk 0:02:21]}  Rxa2 {[%clk 0:01:19]} 29. Bc4 {[%clk 0:02:19]}  Ra1+ {[%clk 0:01:10]} 30. Kg2 {[%clk 0:02:18]}  a5 {[%clk 0:01:10]} 31. Nc2 {[%clk 0:02:17]} 1-0


[Site "https://www.chess.com"]

[Event "Titled Tuesday Blitz March 15 Early 2022"]
[White "Bacrot, Etienne"]
[Black "Deac, Bogdan-Daniel"]
[WhiteFideId "605506"]
[BlackFideId "1226380"]
[WhiteElo "2673"]
[BlackElo "2646"]
[Result "0-1"]
[Round "03"]
[TimeControl "180+1"]
[Date "2022.03.15"]
[WhiteClock "0:00:01"]
[BlackClock "0:00:04"]

1. e4 {[%clk 0:02:57]}  c5 {[%clk 0:03:00]} 2. Nf3 {[%clk 0:02:57]}  d6 {[%clk 0:03:00]} 3. Bb5+ {[%clk 0:02:57]}  Nd7 {[%clk 0:02:59]} 4. O-O {[%clk 0:02:55]}  Nf6 {[%clk 0:02:59]} 5. Re1 {[%clk 0:02:55]}  a6 {[%clk 0:03:00]} 6. Bf1 {[%clk 0:02:56]}  g6 {[%clk 0:02:58]} 7. c3 {[%clk 0:02:50]}  Bg7 {[%clk 0:02:52]} 8. d4 {[%clk 0:02:50]}  O-O {[%clk 0:02:51]} 9. e5 {[%clk 0:02:49]}  Ne8 {[%clk 0:02:49]} 10. e6 {[%clk 0:02:47]}  fxe6 {[%clk 0:02:49]} 11. Ng5 {[%clk 0:02:26]}  Nc7 {[%clk 0:02:48]} 12. dxc5 {[%clk 0:02:27]}  Nxc5 {[%clk 0:02:38]} 13. Be3 {[%clk 0:02:08]}  Nd7 {[%clk 0:02:25]} 14. Qb3 {[%clk 0:02:07]}  d5 {[%clk 0:02:17]} 15. Nd2 {[%clk 0:02:02]}  Ne5 {[%clk 0:01:18]} 16. Bd4 {[%clk 0:01:40]}  Qd6 {[%clk 0:00:54]} 17. Rad1 {[%clk 0:01:28]}  Nc6 {[%clk 0:00:47]} 18. Bb6 {[%clk 0:01:14]}  Ne8 {[%clk 0:00:23]} 19. Nde4 {[%clk 0:01:04]}  Qe5 {[%clk 0:00:16]} 20. Nxe6 {[%clk 0:00:23]}  Qxe6 {[%clk 0:00:15]} 21. Ng5 {[%clk 0:00:23]}  Qf6 {[%clk 0:00:11]} 22. Qxd5+ {[%clk 0:00:20]}  Kh8 {[%clk 0:00:10]} 23. Ne4 {[%clk 0:00:20]}  Qf7 {[%clk 0:00:09]} 24. Qc5 {[%clk 0:00:16]}  Bf5 {[%clk 0:00:06]} 25. Bc4 {[%clk 0:00:16]}  e6 {[%clk 0:00:06]} 26. Ng5 {[%clk 0:00:15]}  Qf6 {[%clk 0:00:05]} 27. Nxe6 {[%clk 0:00:14]}  Bxe6 {[%clk 0:00:05]} 28. Rxe6 {[%clk 0:00:14]}  Qh4 {[%clk 0:00:05]} 29. g3 {[%clk 0:00:13]}  Qg4 {[%clk 0:00:05]} 30. Rde1 {[%clk 0:00:12]}  Nf6 {[%clk 0:00:04]} 31. Bb3 {[%clk 0:00:10]}  Rac8 {[%clk 0:00:03]} 32. Qd6 {[%clk 0:00:09]}  Qf5 {[%clk 0:00:03]} 33. R6e5 {[%clk 0:00:08]}  Nxe5 {[%clk 0:00:03]} 34. Rxe5 {[%clk 0:00:06]}  Qb1+ {[%clk 0:00:03]} 35. Kg2 {[%clk 0:00:06]}  Qxb2 {[%clk 0:00:04]} 36. Re7 {[%clk 0:00:06]}  Qxc3 {[%clk 0:00:04]} 37. Ba4 {[%clk 0:00:01]}  Qc4 {[%clk 0:00:04]} 0-1


[Site "https://www.chess.com"]

[Event "Titled Tuesday Blitz March 15 Early 2022"]
[White "Barp, Alberto"]
[Black "Tabatabaei, M. Amin"]
[WhiteFideId "872555"]
[BlackFideId "12521213"]
[WhiteElo "2229"]
[BlackElo "2544"]
[Result "1/2-1/2"]
[Round "03"]
[TimeControl "180+1"]
[Date "2022.03.15"]
[WhiteClock "0:00:08"]
[BlackClock "0:00:14"]

1. d4 {[%clk 0:03:00]}  e6 {[%clk 0:03:00]} 2. c4 {[%clk 0:03:00]}  b6 {[%clk 0:03:01]} 3. a3 {[%clk 0:02:56]}  Bb7 {[%clk 0:03:00]} 4. Nc3 {[%clk 0:02:57]}  Nf6 {[%clk 0:03:01]} 5. Qc2 {[%clk 0:02:54]}  d5 {[%clk 0:03:00]} 6. cxd5 {[%clk 0:02:49]}  Nxd5 {[%clk 0:03:00]} 7. e4 {[%clk 0:02:49]}  Nxc3 {[%clk 0:03:00]} 8. bxc3 {[%clk 0:02:50]}  Be7 {[%clk 0:02:58]} 9. Nf3 {[%clk 0:02:49]}  c5 {[%clk 0:02:58]} 10. Bb5+ {[%clk 0:02:49]}  Bc6 {[%clk 0:02:51]} 11. Bxc6+ {[%clk 0:02:42]}  Nxc6 {[%clk 0:02:52]} 12. Be3 {[%clk 0:02:24]}  Rc8 {[%clk 0:02:50]} 13. Qe2 {[%clk 0:02:15]}  cxd4 {[%clk 0:02:50]} 14. cxd4 {[%clk 0:02:16]}  O-O {[%clk 0:02:49]} 15. O-O {[%clk 0:02:16]}  Na5 {[%clk 0:02:49]} 16. Rfd1 {[%clk 0:02:08]}  Qd7 {[%clk 0:02:48]} 17. d5 {[%clk 0:02:06]}  exd5 {[%clk 0:02:46]} 18. exd5 {[%clk 0:02:06]}  Rfe8 {[%clk 0:02:39]} 19. Qd3 {[%clk 0:02:01]}  Nc4 {[%clk 0:02:27]} 20. Ra2 {[%clk 0:01:42]}  Nxe3 {[%clk 0:02:23]} 21. Qxe3 {[%clk 0:01:38]}  Bc5 {[%clk 0:02:21]} 22. Qd3 {[%clk 0:01:37]}  b5 {[%clk 0:02:06]} 23. Ng5 {[%clk 0:01:27]}  g6 {[%clk 0:01:53]} 24. Ne4 {[%clk 0:01:27]}  Qe7 {[%clk 0:01:43]} 25. Re2 {[%clk 0:00:59]}  f5 {[%clk 0:01:40]} 26. Nc3 {[%clk 0:00:58]}  Qh4 {[%clk 0:01:36]} 27. g3 {[%clk 0:00:53]}  Qc4 {[%clk 0:01:33]} 28. Rxe8+ {[%clk 0:00:21]}  Rxe8 {[%clk 0:01:32]} 29. Nxb5 {[%clk 0:00:20]}  Re1+ {[%clk 0:01:05]} 30. Kg2 {[%clk 0:00:20]}  Qxd3 {[%clk 0:01:06]} 31. Rxd3 {[%clk 0:00:21]}  Kf7 {[%clk 0:01:06]} 32. d6 {[%clk 0:00:21]}  Ke8 {[%clk 0:01:00]} 33. Rc3 {[%clk 0:00:21]}  Bb6 {[%clk 0:00:59]} 34. a4 {[%clk 0:00:17]}  Re2 {[%clk 0:00:57]} 35. a5 {[%clk 0:00:16]}  Bxa5 {[%clk 0:00:47]} 36. Re3+ {[%clk 0:00:12]}  Rxe3 {[%clk 0:00:47]} 37. fxe3 {[%clk 0:00:13]}  a6 {[%clk 0:00:32]} 38. Na3 {[%clk 0:00:14]}  Kd7 {[%clk 0:00:29]} 39. Nc4 {[%clk 0:00:14]}  Bb4 {[%clk 0:00:30]} 40. Kf3 {[%clk 0:00:14]}  Bxd6 {[%clk 0:00:29]} 41. e4 {[%clk 0:00:15]}  fxe4+ {[%clk 0:00:24]} 42. Kxe4 {[%clk 0:00:16]}  Ke6 {[%clk 0:00:23]} 43. Kd4 {[%clk 0:00:14]}  Bb4 {[%clk 0:00:19]} 44. g4 {[%clk 0:00:15]}  a5 {[%clk 0:00:18]} 45. Nb6 {[%clk 0:00:14]}  Kf6 {[%clk 0:00:17]} 46. h4 {[%clk 0:00:13]}  h5 {[%clk 0:00:17]} 47. gxh5 {[%clk 0:00:13]}  gxh5 {[%clk 0:00:18]} 48. Ke4 {[%clk 0:00:14]}  Ke6 {[%clk 0:00:13]} 49. Na4 {[%clk 0:00:12]}  Be7 {[%clk 0:00:11]} 50. Kd4 {[%clk 0:00:08]}  Bxh4 {[%clk 0:00:10]} 51. Ke4 {[%clk 0:00:08]}  Be1 {[%clk 0:00:09]} 52. Nc5+ {[%clk 0:00:08]}  Ke7 {[%clk 0:00:08]} 53. Nd3 {[%clk 0:00:08]}  Bc3 {[%clk 0:00:08]} 54. Nf4 {[%clk 0:00:07]}  h4 {[%clk 0:00:04]} 55. Nd5+ {[%clk 0:00:07]}  Kd6 {[%clk 0:00:04]} 56. Nxc3 {[%clk 0:00:08]}  Kc5 {[%clk 0:00:05]} 57. Kf4 {[%clk 0:00:07]}  Kc4 {[%clk 0:00:06]} 58. Na4 {[%clk 0:00:07]}  Kb5 {[%clk 0:00:06]} 59. Nb2 {[%clk 0:00:07]}  Kb4 {[%clk 0:00:07]} 60. Kg4 {[%clk 0:00:06]}  Kb3 {[%clk 0:00:08]} 61. Nd3 {[%clk 0:00:07]}  Kc3 {[%clk 0:00:08]} 62. Nc5 {[%clk 0:00:07]}  Kc4 {[%clk 0:00:09]} 63. Na4 {[%clk 0:00:07]}  Kb3 {[%clk 0:00:09]} 64. Nc5+ {[%clk 0:00:06]}  Kb4 {[%clk 0:00:09]} 65. Nd3+ {[%clk 0:00:06]}  Kb5 {[%clk 0:00:10]} 66. Nb2 {[%clk 0:00:06]}  Kb4 {[%clk 0:00:10]} 67. Kxh4 {[%clk 0:00:06]}  Kc3 {[%clk 0:00:10]} 68. Na4+ {[%clk 0:00:07]}  Kb4 {[%clk 0:00:11]} 69. Nb6 {[%clk 0:00:07]}  Kc5 {[%clk 0:00:09]} 70. Na4+ {[%clk 0:00:07]}  Kb4 {[%clk 0:00:09]} 71. Nb2 {[%clk 0:00:07]}  Kc3 {[%clk 0:00:09]} 72. Na4+ {[%clk 0:00:07]}  Kb3 {[%clk 0:00:10]} 73. Nb6 {[%clk 0:00:07]}  Kb4 {[%clk 0:00:10]} 74. Kg4 {[%clk 0:00:07]}  Kc5 {[%clk 0:00:11]} 75. Na4+ {[%clk 0:00:07]}  Kb4 {[%clk 0:00:12]} 76. Nb6 {[%clk 0:00:08]}  Kb5 {[%clk 0:00:12]} 77. Nd5 {[%clk 0:00:08]}  Kc5 {[%clk 0:00:11]} 78. Nc3 {[%clk 0:00:08]}  Kb4 {[%clk 0:00:12]} 79. Nd5+ {[%clk 0:00:08]}  Kc5 {[%clk 0:00:12]} 80. Nc3 {[%clk 0:00:08]}  Kc4 {[%clk 0:00:13]} 81. Na4 {[%clk 0:00:08]}  Kb4 {[%clk 0:00:14]} 82. Nb6 {[%clk 0:00:08]} 1/2-1/2


[Site "https://www.chess.com"]